bitfinex/quotes_SOLUSD_20240822
["timestamp","ask_amount","ask_price","bid_price","bid_amount"]
[1724309963110,5.32500082,142.95,142.91,1.39922203]
[1724309963413,5.32500082,142.94,142.92,6.9966]
[1724309963708,15.5655,142.96,142.92,6.9966]
[1724309963709,5.32500082,142.93,142.92,6.9966]
[1724309966203,5.32498836,142.93,142.92,6.9966]
[1724309969925,5.32498836,142.93,142.91,6.9972]
[1724309970129,5.32524969,142.93,142.91,6.9972]
[1724309970830,22.5605,142.96,142.91,6.9972]
[1724309971012,5.32528788,142.95,142.91,6.9972]
[1724309971213,5.32528788,142.94,142.91,6.9972]
[1724309971402,5.32528788,142.93,142.91,6.9972]
[1724309971602,5.32528788,142.92,142.91,6.9972]
[1724309976937,5.32528788,142.92,142.9,24.4912]
[1724309977229,5.32528788,142.91,142.9,24.4912]
[1724309979638,17.6455,142.95,142.9,24.4912]
[1724309979805,10.65,142.95,142.91,6.9973]
[1724309980002,10.65,142.95,142.91,8.39666959]
[1724309980226,5.32528697,142.94,142.91,8.39666959]
[1724309980510,5.32528697,142.93,142.91,8.39666959]
[1724309980730,5.32528697,142.92,142.91,8.39666959]
[1724309985049,5.32528697,142.92,142.91,6.9973]
[1724309986150,5.32525299,142.92,142.91,6.9973]
[1724309987529,5.32525299,142.92,142.91,8.39662092]
[1724309987943,33.2105,142.96,142.91,6.9973]
[1724309995051,0.12549,142.95,142.91,6.9973]
[1724309998055,1.87470124,142.95,142.91,6.9973]
[1724309998448,0.12549,142.95,142.91,6.9973]
[1724310001043,5.32513424,142.94,142.91,6.9973]
[1724310001240,5.32513424,142.93,142.91,6.9973]
[1724310001550,5.32513424,142.92,142.91,6.9973]
[1724310004284,5.32513424,142.92,142.91,51.9973]
[1724310004564,8.14854891,142.97,142.91,51.9973]
[1724310004565,0.8369021,142.97,142.94,6.9958]
[1724310004742,5.32422178,142.96,142.94,6.9958]
[1724310004942,5.32422178,142.95,142.94,6.9958]
[1724310007850,0.8369021,142.97,142.94,6.9958]
[1724310008168,5.32421603,142.96,142.95,6.9954]
[1724310009066,5.32421603,142.96,142.95,51.9954]
[1724310010970,0.8369021,142.97,142.96,24.4823]
[1724310011143,0.8369021,142.97,142.96,70.88088457]
[1724310011345,6.16005662,142.97,142.96,70.88088457]
[1724310013355,6.16005662,142.97,142.96,81.53088457]
[1724310014161,0.8369021,142.97,142.96,81.53088457]
[1724310014376,6.16002072,142.97,142.96,81.53088457]
[1724310014681,0.8369021,142.97,142.96,24.4823]
[1724310014869,6.16002072,142.97,142.96,24.4823]
[1724310017659,6.16002072,142.97,142.96,69.4823]
[1724310020554,0.8369021,142.97,142.96,69.4823]
[1724310020754,6.16006111,142.97,142.96,69.4823]
[1724310020983,0.8369021,142.97,142.96,69.4823]
[1724310021187,6.16006111,142.97,142.96,69.4823]
[1724310022177,0.8369021,142.97,142.96,69.4823]
[1724310024173,0.8369021,142.97,142.96,80.1323]
[1724310027093,0.8369021,142.97,142.96,69.4823]
[1724310029769,0.8369021,142.97,142.96,24.4823]
[1724310030295,6.16015597,142.97,142.96,24.4823]
[1724310037185,6.16022794,142.97,142.96,24.4823]
[1724310040287,6.16022794,142.97,142.92,34.9825]
[1724310040508,5.32332584,142.96,142.95,6.9954]
[1724310040678,5.32332584,142.96,142.95,51.9954]
[1724310041795,5.32332584,142.96,142.95,69.4837]
[1724310042510,0.8369021,142.97,142.96,6.9949]
[1724310042689,0.8369021,142.97,142.96,53.39360248]
[1724310053100,0.8369021,142.97,142.96,6.9949]
[1724310054508,0.8369021,142.97,142.96,8.39367276]
[1724310054899,0.8369021,142.97,142.96,1.39877276]
[1724310056103,0.8369021,142.97,142.96,8.39367276]
[1724310058732,0.8369021,142.97,142.95,24.4836]
[1724310061632,0.8369021,142.97,142.96,6.9949]
[1724310068134,0.8369021,142.97,142.96,8.39378232]
[1724310071728,0.8369021,142.97,142.96,6.9949]
[1724310074430,0.8369021,142.97,142.95,24.4835]
[1724310074747,0.8369021,142.97,142.96,6.9949]
[1724310081941,0.8369021,142.97,142.91,6.9972]
[1724310081942,23.1547,142.96,142.91,6.9972]
[1724310082247,1.74917752,142.95,142.91,6.9972]
[1724310083345,8.74457752,142.95,142.9,6.9977]
[1724310084137,10.65,142.94,142.9,6.9977]
[1724310085231,10.65,142.94,142.89,17.4949]
[1724310085232,17.6461,142.94,142.89,24.4932]
[1724310085451,0.12549,142.93,142.89,24.4932]
[1724310085742,6.9955,142.95,142.9,8.39738411]
[1724310091751,23.27999,142.96,142.91,6.9972]
[1724310092050,16.1595,142.96,142.93,6.9963]
[1724310096835,16.1595,142.96,142.94,6.9959]
[1724310106148,23.1544,142.96,142.9,17.4936]
[1724310106460,19.39462341,142.95,142.9,17.4936]
[1724310106657,19.52011341,142.95,142.9,24.4911]
[1724310106963,10.65,142.93,142.9,17.4936]
[1724310107155,1.7494144,142.92,142.9,17.4936]
[1724310108047,10.65,142.91,142.88,6.9984]
[1724310109239,10.65,142.93,142.88,8.39806316]
[1724310110556,10.65,142.93,142.88,6.9984]
[1724310111056,10.65,142.93,142.88,8.39798226]
[1724310111261,10.65,142.93,142.89,6.9982]
[1724310111663,17.77099,142.95,142.9,8.39732735]
[1724310111843,17.77099,142.95,142.9,6.9978]
[1724310112348,29.74568872,142.96,142.9,1.39939266]
[1724310112551,22.4359,142.96,142.9,45.0]
[1724310112748,22.4359,142.96,142.92,6.9968]
[1724310113964,22.4359,142.96,142.92,8.39599013]
[1724310114851,22.4359,142.96,142.92,6.9968]
[1724310122165,18.4814021,142.97,142.95,6.9951]
[1724310122166,0.8369021,142.97,142.95,6.9951]
[1724310123953,0.8369021,142.97,142.96,8.39385437]
[1724310124189,0.8369021,142.97,142.96,53.39385437]
[1724310126390,0.8369021,142.97,142.96,64.04385437]
[1724310126576,0.8369021,142.97,142.96,84.04385437]
[1724310127567,0.8369021,142.97,142.96,84.29483437]
[1724310130494,0.8369021,142.97,142.96,119.26963437]
[1724310131276,0.8369021,142.97,142.96,117.87068]
[1724310131669,0.8369021,142.97,142.96,119.26894449]
[1724310136597,0.8369021,142.97,142.96,117.6197]
[1724310136780,0.8369021,142.97,142.96,72.6197]
[1724310137098,0.8369021,142.97,142.96,74.01812857]
[1724310138776,0.8369021,142.97,142.96,117.6197]
[1724310142197,0.8369021,142.97,142.96,119.01813063]
[1724310142583,0.8369021,142.97,142.96,117.6197]
[1724310144991,0.8369021,142.97,142.96,61.9697]
[1724310145308,0.8369021,142.97,142.96,26.9949]
[1724310145517,0.8369021,142.97,142.96,6.9949]
[1724310146798,0.8369021,142.97,142.96,51.9949]
[1724310149920,0.8369021,142.97,142.96,6.9949]
[1724310150704,0.8369021,142.97,142.96,8.39373573]
[1724310151311,0.8369021,142.97,142.96,53.39373573]
[1724310155794,0.8369021,142.97,142.96,53.39344674]
[1724310156515,0.8369021,142.97,142.96,73.39344674]
[1724310160224,0.8369021,142.97,142.96,73.64442674]
[1724310161615,0.8369021,142.97,142.96,72.24588]
[1724310163651,0.8369021,142.97,142.96,73.64411051]
[1724310168442,0.8369021,142.97,142.96,72.24588]
[1724310169920,0.8369021,142.97,142.96,73.64408963]
[1724310171537,16.1009,143.06,143.04,6.991]
[1724310171741,16.1009,143.06,143.05,6.9905]
[1724310172828,16.1009,143.06,143.04,6.9908]
[1724310173230,16.1009,143.06,143.05,6.9905]
[1724310173437,16.1009,143.06,143.04,6.9909]
[1724310175447,16.1009,143.06,143.05,1.397961]
[1724310179753,16.1009,143.06,143.04,6.9909]
[1724310183557,16.1009,143.06,143.04,8.38891253]
[1724310184261,16.1009,143.06,143.04,1.39801253]
[1724310186759,16.1009,143.06,143.03,24.4699]
[1724310187139,16.1009,143.06,143.04,1.39801459]
[1724310188096,16.1009,143.06,143.04,53.38891459]
[1724310188377,16.1009,143.06,143.05,1.39795655]
[1724310189159,16.1009,143.06,143.04,51.9909]
[1724310189772,16.1009,143.06,143.04,6.9909]
[1724310189944,16.1009,143.06,143.03,24.47]
[1724310191345,16.1009,143.06,143.04,8.38897453]
[1724310198106,16.1009,143.06,143.05,6.9905]
[1724310198389,16.1009,143.06,143.05,8.38851067]
[1724310198594,16.5721,143.1,143.05,8.38851067]
[1724310198768,23.5605,143.1,143.05,8.38851067]
[1724310199156,23.5605,143.1,143.06,0.7959218]
[1724310199392,23.5605,143.1,143.06,6.9899]
[1724310199731,23.5605,143.1,143.06,8.38771062]
[1724310200023,35.95777918,143.1,143.05,24.4664]
[1724310200230,23.5605,143.1,143.05,24.4664]
[1724310200420,23.5605,143.1,143.06,1.39785756]
[1724310203397,16.5721,143.1,143.06,1.39785756]
[1724310203596,0.8369021,143.11,143.07,17.473]
[1724310203902,0.8369021,143.11,143.08,46.3973722]
[1724310204203,0.8369021,143.11,143.09,1.3973703]
[1724310204404,0.8369021,143.11,143.1,6.9881]
[1724310204607,0.8369021,143.11,143.1,51.9881]
[1724310207899,0.8369021,143.11,143.09,24.4594]
[1724310209012,0.8369021,143.11,143.08,6.989]
[1724310209212,0.8369021,143.11,143.07,6.9894]
[1724310209615,0.8369021,143.11,143.08,8.38665506]
[1724310210435,0.8369021,143.11,143.08,1.39765506]
[1724310212322,0.8369021,143.11,143.08,8.38655506]
[1724310212526,0.8369021,143.11,143.09,8.38607551]
[1724310212731,0.8369021,143.11,143.09,6.9885]
[1724310213205,0.8369021,143.11,143.08,6.989]
[1724310213407,0.8369021,143.11,143.08,8.38656977]
[1724310214540,0.8369021,143.11,143.08,6.989]
[1724310214739,0.8369021,143.11,143.08,8.38657404]
[1724310215734,0.8369021,143.11,143.08,6.989]
[1724310219626,0.8369021,143.11,143.07,6.9895]
[1724310221341,20.22179224,143.11,143.06,24.4641]
[1724310222024,9.57179224,143.11,143.06,17.4742]
[1724310222228,0.8369021,143.11,143.07,57.04776481]
[1724310222413,0.8369021,143.11,143.07,55.65]
[1724310223046,0.8369021,143.11,143.08,6.9887]
[1724310223220,0.8369021,143.11,143.09,6.9884]
[1724310223744,0.8369021,143.11,143.08,24.4612]
[1724310223949,0.8369021,143.11,143.08,17.4723]
[1724310229324,2.58404974,143.11,143.08,17.4723]
[1724310229549,0.8369021,143.11,143.08,17.4723]
[1724310232270,7.8245021,143.11,143.06,6.9899]
[1724310237554,7.8245021,143.11,143.06,8.38773365]
[1724310237872,0.8369021,143.11,143.07,6.9895]
[1724310238576,7.8245021,143.11,143.06,6.9899]
[1724310239777,1.74736661,143.1,143.06,6.9899]
[1724310240657,7.8245021,143.11,143.07,6.9895]
[1724310241159,0.8369021,143.11,143.07,6.9895]
[1724310242273,7.8246021,143.11,143.07,6.9895]
[1724310242670,26.8424,143.09,143.05,17.4757]
[1724310242853,1.74762148,143.08,143.05,17.4757]
[1724310243651,41.13708578,143.09,143.05,17.4757]
[1724310244277,41.13708578,143.09,143.05,24.4662]
[1724310244577,30.48708578,143.09,143.05,24.4662]
[1724310248977,23.1813,143.09,143.05,24.4662]
[1724310249961,16.1924,143.09,143.05,24.4662]
[1724310250276,16.1924,143.09,143.06,6.99]
[1724310252488,16.1924,143.09,143.06,8.38793766]
[1724310252779,16.1924,143.09,143.06,6.99]
[1724310254666,1.74742832,143.08,143.05,24.4661]
[1724310255081,16.1924,143.09,143.05,24.4661]
[1724310263282,23.181,143.09,143.05,24.4661]
[1724310263587,17.6391,143.08,143.05,17.4757]
[1724310263801,10.65,143.08,143.05,17.4757]
[1724310264676,10.65,143.06,143.02,24.4708]
[1724310264889,10.65,143.04,143.02,17.479]
[1724310265199,16.91241899,143.05,143.02,17.479]
[1724310265200,15.1644,143.05,143.02,17.479]
[1724310266184,15.1644,143.05,143.02,24.4709]
[1724310274608,13.1644,143.05,143.02,24.4709]
[1724310276595,13.1644,143.05,142.99,17.4826]
[1724310276596,10.65,143.04,142.99,17.4826]
[1724310276913,10.65,143.04,143.01,6.9924]
[1724310278102,10.65,143.04,143.0,51.9929]
[1724310278412,10.65,143.04,143.01,6.9925]
[1724310286224,20.46536279,143.05,143.01,6.9925]
[1724310294540,18.46536279,143.05,143.02,6.992]
[1724310297740,18.46536279,143.05,143.01,17.4811]
[1724310297941,18.46536279,143.05,143.04,6.991]
[1724310298131,11.1644,143.05,143.04,6.991]
[1724310298947,11.1644,143.05,143.03,24.4699]
[1724310300929,11.1644,143.05,143.04,6.991]
[1724310301138,24.94574854,143.08,143.04,51.991]
[1724310302333,53.25,143.05,142.93,0.72452676]
[1724310302533,53.25,143.05,142.77,6.4345]
[1724310302534,17.3017,142.93,142.79,20.0]
[1724310302750,17.3017,142.93,142.83,30.65]
[1724310302751,6.6517,142.93,142.83,30.65]
[1724310302955,17.3017,142.93,142.84,1.39962275]
[1724310303150,17.3017,142.93,142.83,30.65]
[1724310303367,10.65,142.91,142.83,30.65]
[1724310303527,13.81862905,142.9,142.84,16.4232]
[1724310303841,13.81862905,142.89,142.84,16.4232]
[1724310304037,13.81862905,142.88,142.85,12.04963838]
[1724310304258,17.6464,142.94,142.85,10.65]
[1724310304433,10.65,142.92,142.84,16.4232]
[1724310304752,5.32591078,142.91,142.84,16.4232]
[1724310304927,10.65,142.92,142.84,16.4232]
[1724310305132,5.32584536,142.91,142.84,16.4232]
[1724310305332,19.39643062,142.92,142.84,16.4232]
[1724310305633,5.3262388,142.91,142.85,0.12549]
[1724310305835,19.39643062,142.92,142.85,0.12549]
[1724310306131,5.32610692,142.91,142.85,0.12549]
[1724310306332,5.32610692,142.91,142.84,16.4232]
[1724310306333,12.39951611,142.9,142.84,16.4232]
[1724310306868,10.65,142.9,142.84,16.4232]
[1724310307953,6.9975,142.91,142.85,45.25098]
[1724310308255,8.74712654,142.91,142.85,45.25098]
[1724310312061,6.9975,142.91,142.85,45.25098]
[1724310314752,10.65,142.92,142.85,45.25098]
[1724310315144,12.39962506,142.92,142.85,45.25098]
[1724310316057,6.9975,142.91,142.85,45.25098]
[1724310316572,7.31435889,142.93,142.81,20.0]
[1724310316573,6.9984,142.89,142.81,25.7145]
[1724310316871,8.74828397,142.89,142.82,20.0]
[1724310317168,8.74828308,142.89,142.82,20.0]
[1724310317546,8.74828308,142.89,142.83,0.12549]
[1724310317750,8.74828308,142.89,142.83,45.12549]
[1724310317949,8.74828308,142.89,142.84,20.0]
[1724310318255,8.74828308,142.89,142.83,0.12549]
[1724310318471,6.9984,142.89,142.83,0.12549]
[1724310318953,8.74839206,142.89,142.83,0.12549]
[1724310320748,6.9984,142.89,142.83,0.12549]
[1724310321686,6.9984,142.89,142.83,46.65087701]
[1724310321847,24.96085793,142.9,142.83,46.65087701]
[1724310322044,24.96085793,142.9,142.84,20.0]
[1724310322275,24.96085793,142.9,142.85,1.39988567]
[1724310323057,17.648,142.9,142.85,1.39988567]
[1724310323777,6.998,142.9,142.85,1.39988567]
[1724310325289,6.9975,142.91,142.85,1.39988567]
[1724310326990,6.9975,142.91,142.84,20.0]
[1724310327194,17.648,142.9,142.85,0.12549]
[1724310327854,6.9988,142.89,142.85,0.12549]
[1724310328053,17.648,142.9,142.85,0.12549]
[1724310329877,17.648,142.9,142.84,20.0]
[1724310330078,1.74977071,142.89,142.84,20.0]
[1724310332066,17.648,142.9,142.84,20.0]
[1724310332265,6.998,142.9,142.85,1.39991349]
[1724310333181,10.65,142.92,142.85,1.39991349]
[1724310333182,6.9974,142.91,142.85,1.39991349]
[1724310335477,10.65,142.9,142.84,20.0]
[1724310335683,10.65,142.9,142.85,0.12549]
[1724310335983,10.65,142.9,142.85,1.52530277]
[1724310336175,10.65,142.9,142.85,0.12549]
[1724310336680,7.31120154,142.93,142.85,12.30079734]
[1724310336863,7.31120154,142.93,142.85,57.30079734]
[1724310337397,14.30760154,142.93,142.85,57.30079734]
[1724310337983,14.30760154,142.93,142.85,55.90098]
[1724310338366,12.39959699,142.92,142.85,55.90098]
[1724310338770,12.39959699,142.92,142.85,45.25098]
[1724310339165,10.65,142.92,142.85,45.25098]
[1724310341261,10.65,142.92,142.86,1.39971011]
[1724310341664,10.65,142.92,142.85,45.25098]
[1724310342288,10.65,142.92,142.86,1.39972374]
[1724310342474,10.65,142.92,142.85,45.25098]
[1724310344280,10.65,142.92,142.86,1.39966641]
[1724310345168,14.30760154,142.93,142.86,17.14506641]
[1724310345965,7.31120154,142.93,142.86,17.14506641]
[1724310346184,7.31120154,142.93,142.87,10.90098]
[1724310346381,17.6458,142.95,142.88,1.39950939]
[1724310348296,7.30941765,142.97,142.88,1.39950939]
[1724310348476,37.6451,142.96,142.88,1.39950939]
[1724310348790,17.6451,142.96,142.88,21.39950939]
[1724310349389,6.9956,142.95,142.88,21.39950939]
[1724310349599,6.9951,142.96,142.88,21.39950939]
[1724310349890,17.6451,142.96,142.89,0.12549]
[1724310350086,17.6451,142.96,142.89,46.65031325]
[1724310353198,10.65,142.96,142.89,46.65031325]
[1724310355093,10.65,142.96,142.89,57.30031325]
[1724310355294,7.30941765,142.97,142.9,15.4777]
[1724310355497,7.30941765,142.97,142.91,1.52463799]
[1724310355708,7.30941765,142.97,142.91,46.52463799]
[1724310358096,7.30941765,142.97,142.91,45.12549]
[1724310359296,7.30941765,142.97,142.92,1.3991267]
[1724310359495,7.30941765,142.97,142.91,45.12549]
[1724310361284,7.30941765,142.97,142.92,1.39912698]
[1724310362297,7.30941765,142.97,142.91,45.12549]
[1724310363613,7.30941765,142.97,142.92,1.52460729]
[1724310364990,7.30941765,142.97,142.92,0.12549]
[1724310365498,17.6435,142.99,142.92,0.12549]
[1724310370199,10.65,142.99,142.92,0.12549]
[1724310370415,12.39872286,142.99,142.92,0.12549]
[1724310370794,10.65,142.99,142.92,0.12549]
[1724310371522,17.6436,142.99,142.92,0.12549]
[1724310372005,1.74872623,142.98,142.92,0.12549]
[1724310372208,8.74282623,142.98,142.92,0.12549]
[1724310372691,17.6436,142.99,142.92,0.12549]
[1724310372889,1.74882172,142.98,142.92,0.12549]
[1724310373630,1.74882151,142.98,142.92,0.12549]
[1724310373798,17.6436,142.99,142.92,0.12549]
[1724310375102,1.74872335,142.98,142.92,0.12549]
[1724310375302,6.9936,142.99,142.92,0.12549]
[1724310375618,1.74872353,142.98,142.92,0.12549]
[1724310376312,7.31340724,143.01,142.92,0.12549]
[1724310376313,6.993,143.0,142.92,0.12549]
[1724310376515,7.31340724,143.01,142.94,6.0031]
[1724310376733,7.31340724,143.01,142.95,1.39877543]
[1724310377912,7.31340724,143.01,142.94,6.12859]
[1724310378206,7.31340724,143.01,142.95,1.52430469]
[1724310378809,14.30590724,143.01,142.95,1.52430469]
[1724310381920,17.6431,143.0,142.95,1.39881469]
[1724310382121,10.65,142.98,142.93,16.5327]
[1724310382301,10.65,142.96,142.93,16.5327]
[1724310383399,17.6452,142.96,142.9,6.5745]
[1724310383705,10.65,142.94,142.9,6.5745]
[1724310384431,10.65,142.94,142.89,16.5263]
[1724310384603,1.74916253,142.93,142.89,16.5263]
[1724310386917,12.39931531,142.94,142.89,16.5263]
[1724310387124,10.65,142.94,142.89,16.5263]
[1724310388313,12.39931246,142.94,142.89,16.5263]
[1724310389404,10.65,142.94,142.89,16.5263]
[1724310391042,17.6461,142.94,142.89,16.5263]
[1724310392038,10.65,142.94,142.89,16.5263]
[1724310394846,17.6459,142.94,142.89,16.5263]
[1724310395047,10.65,142.94,142.89,16.5263]
[1724310396532,19.39521172,142.94,142.89,16.5263]
[1724310396843,19.39521178,142.94,142.89,16.5263]
[1724310397743,12.39931178,142.94,142.89,16.5263]
[1724310399546,19.39521178,142.94,142.89,16.5263]
[1724310399727,12.39931178,142.94,142.89,16.5263]
[1724310400240,10.65,142.94,142.89,16.5263]
[1724310400622,10.65,142.94,142.9,1.39941374]
[1724310400825,10.65,142.94,142.89,16.5263]
[1724310401240,12.39926215,142.94,142.89,16.5263]
[1724310402841,10.65,142.94,142.89,16.5263]
[1724310403051,10.65,142.94,142.9,1.39940693]
[1724310403830,10.65,142.94,142.86,6.5202]
[1724310403831,10.65,142.92,142.83,22.0122]
[1724310404031,10.65,142.88,142.83,22.0122]
[1724310404229,1.75010244,142.87,142.83,22.0122]
[1724310404562,10.65,142.86,142.83,15.4987]
[1724310406140,10.65,142.88,142.83,15.4987]
[1724310406948,1.75001037,142.87,142.83,15.4987]
[1724310409239,10.65,142.85,142.77,15.5965]
[1724310409440,6.1458,142.87,142.77,15.5965]
[1724310409441,10.65,142.83,142.77,15.5965]
[1724310409672,10.65,142.81,142.77,15.5965]
[1724310410540,8.75267167,142.82,142.73,15.5965]
[1724310410767,17.5009,142.85,142.73,15.5965]
[1724310410768,10.65,142.79,142.73,15.5965]
[1724310411667,10.65,142.8,142.73,15.5965]
[1724310411841,7.0019,142.82,142.73,15.5965]
[1724310411842,10.65,142.78,142.73,15.5965]
[1724310412247,1.7513614,142.77,142.73,15.5965]
[1724310412447,10.65,142.78,142.73,15.5965]
[1724310412956,7.0027,142.81,142.73,15.5965]
[1724310413150,10.65,142.78,142.73,15.5965]
[1724310413565,10.65,142.76,142.68,15.5965]
[1724310413780,12.40155677,142.76,142.68,15.5965]
[1724310414881,10.65,142.76,142.68,15.5965]
[1724310415047,10.65,142.76,142.69,20.0]
[1724310415250,7.31481777,142.77,142.69,30.65]
[1724310415455,17.6542,142.78,142.7,45.25098]
[1724310415756,10.65,142.78,142.71,30.65]
[1724310415955,10.65,142.78,142.72,45.25098]
[1724310422076,7.31409038,142.8,142.73,32.5262]
[1724310422282,7.31409038,142.8,142.74,45.25098]
[1724310422846,7.31409038,142.8,142.75,1.40076076]
[1724310423553,7.31409038,142.8,142.76,0.12549]
[1724310423757,7.31409038,142.8,142.74,45.25098]
[1724310424065,17.6514,142.83,142.74,45.25098]
[1724310424246,24.9677233,142.83,142.74,45.25098]
[1724310424992,24.9677233,142.83,142.75,10.65]
[1724310425193,24.9677233,142.83,142.76,45.25098]
[1724310427692,14.3177233,142.83,142.76,45.25098]
[1724310427894,24.9677233,142.83,142.76,45.25098]
[1724310432506,1.75073285,142.82,142.76,45.25098]
[1724310434207,7.3163233,142.83,142.76,45.25098]
[1724310435410,7.3163233,142.83,142.77,16.6653]
[1724310438102,7.3163233,142.83,142.77,18.06584072]
[1724310438305,14.3177233,142.83,142.77,18.06584072]
[1724310438491,7.3163233,142.83,142.77,18.06584072]
[1724310439197,7.3163233,142.83,142.77,16.6653]
[1724310442511,9.0669473,142.83,142.77,16.6653]
[1724310443802,1.7506245,142.82,142.77,16.6653]
[1724310446215,289.1734,142.97,142.77,16.6653]
[1724310446418,10.65,142.83,142.77,16.6653]
[1724310446795,10.65,142.81,142.77,16.6653]
[1724310447212,10.65,142.81,142.77,23.6694]
[1724310447814,17.6523,142.81,142.77,16.6653]
[1724310447994,17.5011,142.85,142.77,16.6653]
[1724310447995,10.65,142.79,142.77,16.6653]
[1724310449019,17.6533,142.79,142.77,16.6653]
[1724310449325,17.6533,142.79,142.74,7.0056]
[1724310450509,6.1919,142.83,142.75,7.0048]
[1724310450710,10.65,142.79,142.75,7.0048]
[1724310452004,10.65,142.79,142.74,7.0056]
[1724310456030,10.65,142.79,142.75,7.0052]
[1724310458207,14.31578308,142.81,142.75,17.5127]
[1724310458829,14.31578308,142.81,142.76,7.0046]
[1724310459520,7.0024,142.81,142.76,7.0046]
[1724310460407,44.96701719,142.82,142.77,7.0041]
[1724310460609,37.6519,142.82,142.77,7.0041]
[1724310461333,7.0023,142.81,142.77,7.0041]
[1724310463414,37.6519,142.82,142.77,7.0041]
[1724310465955,7.31339816,142.83,142.79,7.0032]
[1724310466131,7.001,142.84,142.79,7.0032]
[1724310467223,20.0,142.83,142.79,7.0032]
[1724310469348,27.0014,142.83,142.79,7.0032]
[1724310470233,20.0,142.83,142.79,7.0032]
[1724310470737,17.6509,142.84,142.79,7.0032]
[1724310474657,16.6509,142.84,142.79,7.0032]
[1724310476264,16.6509,142.84,142.8,6.1129]
[1724310476563,7.31233127,142.86,142.83,7.0011]
[1724310476730,10.65,142.87,142.83,7.0011]
[1724310482550,14.31119765,142.88,142.83,7.0011]
[1724310482932,24.96119765,142.88,142.83,7.0011]
[1724310489265,6.9996,142.87,142.82,7.0017]
[1724310489440,6.9996,142.87,142.81,32.8602]
[1724310490565,10.65,142.86,142.81,39.8623]
[1724310490757,7.31219765,142.88,142.81,15.3548]
[1724310490758,10.65,142.84,142.81,15.3548]
[1724310491734,10.65,142.82,142.81,15.3548]
[1724310492264,10.65,142.82,142.78,33.9513]
[1724310493145,10.65,142.82,142.78,40.9549]
[1724310496363,17.6519,142.82,142.78,33.9513]
[1724310498067,17.6519,142.82,142.78,40.955]
[1724310500765,7.0014,142.83,142.78,40.955]
[1724310501351,10.65,142.84,142.78,40.955]
[1724310501557,17.95708333,142.84,142.78,40.955]
[1724310501855,7.0015,142.83,142.78,40.955]
[1724310504385,7.0015,142.83,142.79,7.0031]
[1724310505686,17.6519,142.82,142.78,40.9549]
[1724310505858,7.0024,142.81,142.78,16.4428]
[1724310506060,17.6528,142.8,142.75,39.8713]
[1724310508271,7.0033,142.79,142.75,39.8713]
[1724310520399,17.6538,142.78,142.75,15.354]
[1724310520597,10.65,142.78,142.72,39.1019]
[1724310521269,17.6548,142.76,142.72,39.8886]
[1724310521467,10.65,142.76,142.72,39.8886]
[1724310522368,7.0044,142.77,142.73,7.0062]
[1724310523486,17.6539,142.78,142.73,7.0062]
[1724310523784,7.28785909,142.79,142.73,1.40115647]
[1724310523960,14.29115909,142.79,142.75,7.0051]
[1724310524388,7.0033,142.79,142.75,7.0051]
[1724310526587,7.2744293,142.82,142.76,7.0043]
[1724310526781,7.2744293,142.82,142.77,16.3319]
[1724310526976,7.2744293,142.82,142.78,7.0033]
[1724310527487,7.0014,142.83,142.78,7.0033]
[1724310537218,7.0018,142.82,142.78,7.0033]
[1724310537584,17.6518,142.82,142.78,7.0033]
[1724310546288,10.65,142.82,142.79,7.0032]
[1724310546512,7.0014,142.83,142.79,7.0032]
[1724310548317,7.0014,142.83,142.78,24.5128]
[1724310550313,7.0026,142.81,142.77,16.3319]
[1724310550899,17.6519,142.82,142.77,23.3358]
[1724310551522,17.6519,142.82,142.78,7.0037]
[1724310553016,7.0014,142.83,142.79,7.0031]
[1724310557100,7.0014,142.83,142.78,7.0036]
[1724310558810,7.0019,142.82,142.78,7.0036]
[1724310559013,17.6519,142.82,142.78,7.0036]
[1724310559931,17.6519,142.82,142.77,40.8464]